[Event "Late-Titled-Tuesday-Blitz-September-12-2023"]
[Site "Chess.com"]
[Date "2023.09.12"]
[Round "2"]
[White "allvim"]
[Black "Andrej2004"]
[Result "0-1"]
[WhiteElo "2255"]
[BlackElo "2552"]
[TimeControl "180+1"]
[EndTime "14:19:27 PDT"]
[Termination "Andrej2004 won by checkmate"]

1. e4 {[%clk 0:03:00.9]} 1... c5 {[%clk 0:02:59.7]} 2. Nf3 {[%clk 0:03:00.9]}
2... Nc6 {[%clk 0:02:57.7]} 3. d4 {[%clk 0:03:00.5]} 3... cxd4 {[%clk
0:02:58.6]} 4. Nxd4 {[%clk 0:03:01]} 4... g6 {[%clk 0:02:56.9]} 5. Nc3 {[%clk
0:02:58.8]} 5... Bg7 {[%clk 0:02:56.7]} 6. Be3 {[%clk 0:02:59.4]} 6... Nf6
{[%clk 0:02:56.2]} 7. Bc4 {[%clk 0:02:55.8]} 7... O-O {[%clk 0:02:54.6]} 8. Bb3
{[%clk 0:02:56]} 8... d6 {[%clk 0:02:55.1]} 9. f3 {[%clk 0:02:56.4]} 9... Bd7
{[%clk 0:02:54.2]} 10. Qd2 {[%clk 0:02:56.5]} 10... a5 {[%clk 0:02:49.4]} 11. a4
{[%clk 0:02:22.6]} 11... Nb4 {[%clk 0:02:42.6]} 12. O-O-O {[%clk 0:02:14.7]}
12... Rc8 {[%clk 0:02:36.2]} 13. Kb1 {[%clk 0:02:12.1]} 13... Qc7 {[%clk
0:02:26.2]} 14. h4 {[%clk 0:02:11.4]} 14... h5 {[%clk 0:02:04.4]} 15. g4 {[%clk
0:02:10.6]} 15... hxg4 {[%clk 0:02:04.4]} 16. h5 {[%clk 0:02:11.1]} 16... gxh5
{[%clk 0:02:03.6]} 17. Bh6 {[%clk 0:02:09.7]} 17... Qc5 {[%clk 0:01:49.3]} 18.
Nf5 {[%clk 0:01:51.9]} 18... Bxf5 {[%clk 0:01:45.2]} 19. Qg5 {[%clk 0:01:51.6]}
19... Bg6 {[%clk 0:01:43]} 20. Qxg6 {[%clk 0:01:52.1]} 20... Ne8 {[%clk
0:01:27.2]} 21. Rxh5 {[%clk 0:01:46.2]} 21... d5 {[%clk 0:00:58.9]} 22. Qg5
{[%clk 0:00:26.7]} 22... d4 {[%clk 0:00:48.2]} 23. Qg6 {[%clk 0:00:22.6]} 23...
Rc6 {[%clk 0:00:36.2]} 24. Qxg4 {[%clk 0:00:17.1]} 24... Qxh5 {[%clk 0:00:29.6]}
25. Qxh5 {[%clk 0:00:16.3]} 25... Rxh6 {[%clk 0:00:29.6]} 26. Qxa5 {[%clk
0:00:09.6]} 26... Nc6 {[%clk 0:00:27.7]} 27. Qg5 {[%clk 0:00:06.7]} 27... dxc3
{[%clk 0:00:25.9]} 28. Rg1 {[%clk 0:00:07.4]} 28... Rh7 {[%clk 0:00:15.1]} 29.
f4 {[%clk 0:00:07.1]} 29... cxb2 {[%clk 0:00:14.8]} 30. e5 {[%clk 0:00:06.1]}
30... e6 {[%clk 0:00:14.1]} 31. f5 {[%clk 0:00:05.9]} 31... exf5 {[%clk
0:00:13.9]} 32. Qxf5 {[%clk 0:00:04.8]} 32... Nd8 {[%clk 0:00:12.5]} 33. e6
{[%clk 0:00:04.6]} 33... fxe6 {[%clk 0:00:12.6]} 34. Bxe6+ {[%clk 0:00:05.4]}
34... Nxe6 {[%clk 0:00:12.7]} 35. Qxe6+ {[%clk 0:00:06.3]} 35... Kh8 {[%clk
0:00:13.2]} 36. Re1 {[%clk 0:00:05.9]} 36... Nf6 {[%clk 0:00:13.1]} 37. Re3
{[%clk 0:00:04.2]} 37... Rg8 {[%clk 0:00:13.1]} 38. Rh3 {[%clk 0:00:04.4]} 38...
Rxh3 {[%clk 0:00:12.1]} 39. Qxh3+ {[%clk 0:00:05.3]} 39... Nh7 {[%clk
0:00:12.6]} 40. Qh1 {[%clk 0:00:05.5]} 40... Bd4 {[%clk 0:00:12]} 41. Qxb7
{[%clk 0:00:03]} 41... Rg1+ {[%clk 0:00:11.7]} 42. Ka2 {[%clk 0:00:03.9]} 42...
b1=Q+ {[%clk 0:00:12]} 43. Qxb1 {[%clk 0:00:04.8]} 43... Rxb1 {[%clk 0:00:12.3]}
44. Kxb1 {[%clk 0:00:05.7]} 44... Kg7 {[%clk 0:00:12.8]} 45. Ka2 {[%clk
0:00:06.1]} 45... Kf7 {[%clk 0:00:13.3]} 46. Kb3 {[%clk 0:00:07]} 46... Ke7
{[%clk 0:00:13.5]} 47. Kc4 {[%clk 0:00:07.9]} 47... Ba7 {[%clk 0:00:13.1]} 48.
Kb5 {[%clk 0:00:08.2]} 48... Kd7 {[%clk 0:00:13.7]} 49. Ka6 {[%clk 0:00:08.6]}
49... Bd4 {[%clk 0:00:13.3]} 50. a5 {[%clk 0:00:08.1]} 50... Kc7 {[%clk
0:00:13.7]} 51. c4 {[%clk 0:00:08.4]} 51... Nf6 {[%clk 0:00:12.3]} 52. Kb5
{[%clk 0:00:09.3]} 52... Nd7 {[%clk 0:00:12.3]} 53. c5 {[%clk 0:00:10]} 53...
Bxc5 {[%clk 0:00:12.2]} 54. a6 {[%clk 0:00:09.9]} 54... Bb6 {[%clk 0:00:12.6]}
55. a7 {[%clk 0:00:09.5]} 55... Bxa7 {[%clk 0:00:12.7]} 56. Kc4 {[%clk
0:00:10.4]} 56... Kc6 {[%clk 0:00:12.6]} 57. Kd3 {[%clk 0:00:10.1]} 57... Kd5
{[%clk 0:00:13.1]} 58. Kc3 {[%clk 0:00:10.1]} 58... Ne5 {[%clk 0:00:12.6]} 59.
Kb4 {[%clk 0:00:10.1]} 59... Bc5+ {[%clk 0:00:12.2]} 60. Kb3 {[%clk 0:00:11]}
60... Kd4 {[%clk 0:00:12.2]} 61. Kc2 {[%clk 0:00:11.4]} 61... Kc4 {[%clk
0:00:12.4]} 62. Kd2 {[%clk 0:00:12.3]} 62... Bd4 {[%clk 0:00:12.2]} 63. Ke2
{[%clk 0:00:13.2]} 63... Kd5 {[%clk 0:00:11.5]} 64. Kd2 {[%clk 0:00:14.1]} 64...
Ke4 {[%clk 0:00:12]} 65. Ke2 {[%clk 0:00:14.8]} 65... Nc4 {[%clk 0:00:12.1]} 66.
Kf1 {[%clk 0:00:13.9]} 66... Kf3 {[%clk 0:00:12.6]} 67. Ke1 {[%clk 0:00:14]}
67... Bf2+ {[%clk 0:00:12.7]} 68. Kd1 {[%clk 0:00:13.4]} 68... Ke3 {[%clk
0:00:12.3]} 69. Kc2 {[%clk 0:00:13.5]} 69... Kd4 {[%clk 0:00:12.6]} 70. Kd1
{[%clk 0:00:12.6]} 70... Kd3 {[%clk 0:00:12.2]} 71. Kc1 {[%clk 0:00:12.8]} 71...
Bd4 {[%clk 0:00:09.4]} 72. Kd1 {[%clk 0:00:13]} 72... Bc3 {[%clk 0:00:09.9]} 73.
Kc1 {[%clk 0:00:13.3]} 73... Nb2 {[%clk 0:00:10.2]} 74. Kb1 {[%clk 0:00:13.3]}
74... Kc4 {[%clk 0:00:10.6]} 75. Kc2 {[%clk 0:00:14]} 75... Kd4 {[%clk
0:00:05.4]} 76. Kb3 {[%clk 0:00:13.7]} 76... Nd3 {[%clk 0:00:05.3]} 77. Kc2
{[%clk 0:00:14.5]} 77... Kc4 {[%clk 0:00:05.7]} 78. Kd1 {[%clk 0:00:14.4]} 78...
Nf4 {[%clk 0:00:06.1]} 79. Kc2 {[%clk 0:00:13.8]} 79... Bb4 {[%clk 0:00:06.6]}
80. Kb2 {[%clk 0:00:14]} 80... Nd3+ {[%clk 0:00:06.3]} 81. Kc2 {[%clk
0:00:14.9]} 81... Nf2 {[%clk 0:00:06.6]} 82. Kb2 {[%clk 0:00:14.8]} 82... Bc3+
{[%clk 0:00:07.1]} 83. Kc2 {[%clk 0:00:15.3]} 83... Kb4 {[%clk 0:00:07.3]} 84.
Kc1 {[%clk 0:00:14.4]} 84... Kb3 {[%clk 0:00:07.8]} 85. Kb1 {[%clk 0:00:14.7]}
85... Bd2 {[%clk 0:00:07.2]} 86. Ka1 {[%clk 0:00:14.8]} 86... Nd1 {[%clk
0:00:06.3]} 87. Kb1 {[%clk 0:00:15.7]} 87... Be3 {[%clk 0:00:06.6]} 88. Ka1
{[%clk 0:00:16]} 88... Nb2 {[%clk 0:00:05.2]} 89. Kb1 {[%clk 0:00:16.3]} 89...
Nc4 {[%clk 0:00:05.4]} 90. Ka1 {[%clk 0:00:16.7]} 90... Bf4 {[%clk 0:00:04]} 91.
Kb1 {[%clk 0:00:17.6]} 91... Na3+ {[%clk 0:00:04.3]} 92. Ka1 {[%clk 0:00:18.3]}
92... Be5# {[%clk 0:00:05]} 0-1

[Event "Late-Titled-Tuesday-Blitz-September-12-2023"]
[Site "Chess.com"]
[Date "2023.09.12"]
[Round "3"]
[White "campochess"]
[Black "Siemba"]
[Result "0-1"]
[WhiteElo "2129"]
[BlackElo "2513"]
[TimeControl "180+1"]
[EndTime "14:21:25 PDT"]
[Termination "Siemba won by resignation"]

1. e4 {[%clk 0:03:00.9]} 1... c6 {[%clk 0:03:00]} 2. Nc3 {[%clk 0:02:59]} 2...
d5 {[%clk 0:03:00.9]} 3. Nf3 {[%clk 0:02:58.5]} 3... dxe4 {[%clk 0:03:00.5]} 4.
Nxe4 {[%clk 0:02:58.3]} 4... Nf6 {[%clk 0:03:01.4]} 5. Nxf6+ {[%clk 0:02:57.5]}
5... exf6 {[%clk 0:03:02.3]} 6. b3 {[%clk 0:02:56.3]} 6... Bd6 {[%clk
0:03:02.4]} 7. Bb2 {[%clk 0:02:56.2]} 7... O-O {[%clk 0:03:03.3]} 8. Be2 {[%clk
0:02:55.2]} 8... Re8 {[%clk 0:03:03.2]} 9. O-O {[%clk 0:02:55]} 9... Nd7 {[%clk
0:03:03.8]} 10. d4 {[%clk 0:02:54.5]} 10... Nf8 {[%clk 0:03:04.2]} 11. Bd3
{[%clk 0:02:53.3]} 11... Ng6 {[%clk 0:03:04.5]} 12. h3 {[%clk 0:02:52.5]} 12...
Be6 {[%clk 0:03:04.6]} 13. Re1 {[%clk 0:02:50.2]} 13... Qd7 {[%clk 0:03:05.2]}
14. Qd2 {[%clk 0:02:43.6]} 14... Bxh3 {[%clk 0:03:04.8]} 15. Bxg6 {[%clk
0:02:27.2]} 15... Qg4 {[%clk 0:02:44.8]} 16. g3 {[%clk 0:02:26.9]} 16... Qxf3
{[%clk 0:02:43.8]} 0-1

[Event "Late-Titled-Tuesday-Blitz-September-12-2023"]
[Site "Chess.com"]
[Date "2023.09.12"]
[Round "3"]
[White "azikom"]
[Black "GMForgacs"]
[Result "1-0"]
[WhiteElo "2652"]
[BlackElo "2455"]
[TimeControl "180+1"]
[EndTime "14:21:54 PDT"]
[Termination "azikom won by resignation"]

1. Nf3 {[%clk 0:03:00.5]} 1... Nf6 {[%clk 0:03:00.4]} 2. c4 {[%clk 0:03:00]}
2... g6 {[%clk 0:03:00.6]} 3. Nc3 {[%clk 0:02:59.5]} 3... Bg7 {[%clk 0:03:01.3]}
4. g3 {[%clk 0:02:59.3]} 4... O-O {[%clk 0:03:01.8]} 5. Bg2 {[%clk 0:02:59.8]}
5... d6 {[%clk 0:03:02.5]} 6. O-O {[%clk 0:03:00.1]} 6... e5 {[%clk 0:03:01.6]}
7. d3 {[%clk 0:03:00]} 7... Nc6 {[%clk 0:03:00.6]} 8. Rb1 {[%clk 0:02:59.5]}
8... a5 {[%clk 0:03:01.4]} 9. a3 {[%clk 0:02:59.5]} 9... h6 {[%clk 0:03:01.3]}
10. b4 {[%clk 0:02:59.3]} 10... axb4 {[%clk 0:03:02.2]} 11. axb4 {[%clk
0:03:00]} 11... Be6 {[%clk 0:03:02.2]} 12. Nd2 {[%clk 0:02:57.5]} 12... Rb8
{[%clk 0:03:01]} 13. Nd5 {[%clk 0:02:54.6]} 13... Qd7 {[%clk 0:02:58.1]} 14. b5
{[%clk 0:02:51.3]} 14... Ne7 {[%clk 0:02:57.9]} 15. Nxe7+ {[%clk 0:02:39.3]}
15... Qxe7 {[%clk 0:02:57.8]} 16. Ba3 {[%clk 0:02:39.3]} 16... Nd7 {[%clk
0:02:49.4]} 17. Ne4 {[%clk 0:02:23.5]} 17... f5 {[%clk 0:02:44.5]} 18. Nc3
{[%clk 0:02:22.9]} 18... g5 {[%clk 0:02:41.2]} 19. Nd5 {[%clk 0:02:19.5]} 19...
Nf6 {[%clk 0:02:33.5]} 20. Nxe7+ {[%clk 0:02:18.4]} 1-0

[Event "Late-Titled-Tuesday-Blitz-September-12-2023"]
[Site "Chess.com"]
[Date "2023.09.12"]
[Round "3"]
[White "ferrufino64"]
[Black "Noki102"]
[Result "0-1"]
[WhiteElo "2268"]
[BlackElo "2428"]
[TimeControl "180+1"]
[EndTime "14:22:48 PDT"]
[Termination "Noki102 won by resignation"]

1. e4 {[%clk 0:03:00.9]} 1... e5 {[%clk 0:02:59.9]} 2. d4 {[%clk 0:02:56.6]}
2... exd4 {[%clk 0:02:59.9]} 3. Qxd4 {[%clk 0:02:57.5]} 3... Nc6 {[%clk
0:03:00.1]} 4. Qe3 {[%clk 0:02:57.9]} 4... Bb4+ {[%clk 0:02:49]} 5. Nc3 {[%clk
0:02:55.8]} 5... Ba5 {[%clk 0:02:46.1]} 6. Bd2 {[%clk 0:02:55.4]} 6... Bb6
{[%clk 0:02:46.5]} 7. Qg3 {[%clk 0:02:55.8]} 7... Qf6 {[%clk 0:02:43.6]} 8. f3
{[%clk 0:02:31]} 8... Nge7 {[%clk 0:02:36.9]} 9. O-O-O {[%clk 0:02:16.7]} 9...
d6 {[%clk 0:02:36.6]} 10. Nge2 {[%clk 0:02:15.1]} 10... O-O {[%clk 0:02:28.6]}
11. Bg5 {[%clk 0:02:14.9]} 11... Qg6 {[%clk 0:02:25.8]} 12. Nf4 {[%clk
0:02:14.9]} 12... Be3+ {[%clk 0:02:18.5]} 13. Kb1 {[%clk 0:02:11.4]} 13... Bxf4
{[%clk 0:02:18.5]} 14. Qxf4 {[%clk 0:02:04.6]} 14... Be6 {[%clk 0:02:11.8]} 15.
h4 {[%clk 0:01:58.8]} 15... f6 {[%clk 0:02:11.4]} 16. h5 {[%clk 0:01:51]} 16...
Qxg5 {[%clk 0:02:10.6]} 17. Qxg5 {[%clk 0:01:50.5]} 17... fxg5 {[%clk
0:02:10.7]} 18. Be2 {[%clk 0:01:44]} 18... h6 {[%clk 0:02:08.3]} 19. g4 {[%clk
0:01:44.3]} 19... Ne5 {[%clk 0:02:07.9]} 20. b3 {[%clk 0:01:43.9]} 20... Nxf3
{[%clk 0:02:07]} 0-1

[Event "Late-Titled-Tuesday-Blitz-September-12-2023"]
[Site "Chess.com"]
[Date "2023.09.12"]
[Round "3"]
[White "jaldjald"]
[Black "younix2022"]
[Result "1-0"]
[WhiteElo "2358"]
[BlackElo "2055"]
[TimeControl "180+1"]
[EndTime "14:23:10 PDT"]
[Termination "jaldjald won by checkmate"]

1. e4 {[%clk 0:03:00.9]} 1... c5 {[%clk 0:02:58.6]} 2. Nf3 {[%clk 0:03:00.9]}
2... e6 {[%clk 0:02:58.3]} 3. d4 {[%clk 0:02:59.9]} 3... cxd4 {[%clk 0:02:59.2]}
4. Nxd4 {[%clk 0:03:00.2]} 4... Nf6 {[%clk 0:03:00.1]} 5. Nc3 {[%clk 0:02:59.9]}
5... Nc6 {[%clk 0:03:00.9]} 6. Ndb5 {[%clk 0:02:59.2]} 6... Bb4 {[%clk 0:03:01]}
7. a3 {[%clk 0:02:58.9]} 7... Bxc3+ {[%clk 0:03:01.6]} 8. Nxc3 {[%clk
0:02:59.4]} 8... d6 {[%clk 0:03:01.8]} 9. Bf4 {[%clk 0:02:55.4]} 9... e5 {[%clk
0:03:00.8]} 10. Bg5 {[%clk 0:02:55.4]} 10... Be6 {[%clk 0:02:55.5]} 11. Bd3
{[%clk 0:02:51.4]} 11... O-O {[%clk 0:02:55]} 12. O-O {[%clk 0:02:49.8]} 12...
h6 {[%clk 0:02:55.2]} 13. Bxf6 {[%clk 0:02:48.5]} 13... Qxf6 {[%clk 0:02:54]}
14. Ne2 {[%clk 0:02:41.3]} 14... Nd4 {[%clk 0:02:52.5]} 15. Nxd4 {[%clk
0:02:40.4]} 15... exd4 {[%clk 0:02:52.4]} 16. f4 {[%clk 0:02:41.3]} 16... Rac8
{[%clk 0:02:46.3]} 17. Qd2 {[%clk 0:02:38.9]} 17... Bc4 {[%clk 0:02:45.5]} 18.
Rf3 {[%clk 0:02:24.8]} 18... d5 {[%clk 0:02:42]} 19. e5 {[%clk 0:02:24.2]} 19...
Qa6 {[%clk 0:02:32.5]} 20. f5 {[%clk 0:02:21.9]} 20... Bxd3 {[%clk 0:02:23.2]}
21. cxd3 {[%clk 0:02:21.7]} 21... Qc6 {[%clk 0:02:16.7]} 22. f6 {[%clk
0:02:04.2]} 22... g5 {[%clk 0:02:15.8]} 23. Rg3 {[%clk 0:01:57.7]} 23... Rfd8
{[%clk 0:01:51.5]} 24. Rxg5+ {[%clk 0:01:52.8]} 24... hxg5 {[%clk 0:01:51.2]}
25. Qxg5+ {[%clk 0:01:52.8]} 25... Kf8 {[%clk 0:01:52.1]} 26. Qg7+ {[%clk
0:01:53.5]} 26... Ke8 {[%clk 0:01:52.6]} 27. Qg8+ {[%clk 0:01:52.8]} 27... Kd7
{[%clk 0:01:53.1]} 28. Qxf7# {[%clk 0:01:53.4]} 1-0

[Event "Late-Titled-Tuesday-Blitz-September-12-2023"]
[Site "Chess.com"]
[Date "2023.09.12"]
[Round "3"]
[White "SalihEke"]
[Black "Francisco_Ferrari"]
[Result "1-0"]
[WhiteElo "2517"]
[BlackElo "2229"]
[TimeControl "180+1"]
[EndTime "14:23:46 PDT"]
[Termination "SalihEke won by checkmate"]

1. e4 {[%clk 0:03:00.9]} 1... c5 {[%clk 0:02:55.7]} 2. Nf3 {[%clk 0:03:01.2]}
2... d6 {[%clk 0:02:53.9]} 3. d4 {[%clk 0:03:01.7]} 3... cxd4 {[%clk 0:02:54.8]}
4. Nxd4 {[%clk 0:03:02.6]} 4... Nf6 {[%clk 0:02:54.4]} 5. Nc3 {[%clk 0:03:03.3]}
5... a6 {[%clk 0:02:51.8]} 6. Be2 {[%clk 0:03:03.8]} 6... e6 {[%clk 0:02:50.4]}
7. Be3 {[%clk 0:03:04.3]} 7... Be7 {[%clk 0:02:49.7]} 8. O-O {[%clk 0:03:04.9]}
8... Qc7 {[%clk 0:02:49.9]} 9. Qd2 {[%clk 0:03:03.2]} 9... O-O {[%clk
0:02:50.3]} 10. f3 {[%clk 0:03:02.5]} 10... Nbd7 {[%clk 0:02:50.3]} 11. Rad1
{[%clk 0:03:01.5]} 11... b6 {[%clk 0:02:50.1]} 12. Nb3 {[%clk 0:03:00.6]} 12...
Bb7 {[%clk 0:02:49.1]} 13. g4 {[%clk 0:02:58.2]} 13... Rfe8 {[%clk 0:02:35.8]}
14. g5 {[%clk 0:02:57.5]} 14... Nh5 {[%clk 0:02:33.4]} 15. f4 {[%clk 0:02:57.9]}
15... g6 {[%clk 0:02:34.1]} 16. Bxh5 {[%clk 0:02:57.2]} 16... gxh5 {[%clk
0:02:35]} 17. Qe2 {[%clk 0:02:54.8]} 17... Nc5 {[%clk 0:02:34.6]} 18. Nxc5
{[%clk 0:02:52]} 18... bxc5 {[%clk 0:02:32.8]} 19. Qxh5 {[%clk 0:02:52.5]} 19...
Bf8 {[%clk 0:02:22.4]} 20. Rf3 {[%clk 0:02:44.4]} 20... d5 {[%clk 0:02:15.7]}
21. Rh3 {[%clk 0:02:40.8]} 21... h6 {[%clk 0:02:16.1]} 22. gxh6 {[%clk
0:01:51.8]} 22... d4 {[%clk 0:02:15.6]} 23. Rd2 {[%clk 0:01:40.3]} 23... dxe3
{[%clk 0:02:09.5]} 24. Rg2+ {[%clk 0:01:40.4]} 24... Kh8 {[%clk 0:02:09.7]} 25.
Rhg3 {[%clk 0:01:39.5]} 25... Bd6 {[%clk 0:01:59.4]} 26. Qg5 {[%clk 0:01:37.6]}
26... Bxf4 {[%clk 0:01:29.7]} 27. Qg7# {[%clk 0:01:35.7]} 1-0

[Event "Late-Titled-Tuesday-Blitz-September-12-2023"]
[Site "Chess.com"]
[Date "2023.09.12"]
[Round "3"]
[White "F-Ghaith2021"]
[Black "Arystanner"]
[Result "0-1"]
[WhiteElo "2382"]
[BlackElo "2823"]
[TimeControl "180+1"]
[EndTime "14:24:31 PDT"]
[Termination "Arystanner won by resignation"]

1. e4 {[%clk 0:03:00.9]} 1... c5 {[%clk 0:02:58.2]} 2. Nf3 {[%clk 0:03:00.5]}
2... e6 {[%clk 0:02:58.8]} 3. d4 {[%clk 0:02:59.5]} 3... cxd4 {[%clk 0:02:59.7]}
4. Nxd4 {[%clk 0:02:59.5]} 4... Nf6 {[%clk 0:03:00.1]} 5. Nc3 {[%clk 0:02:58.1]}
5... Nc6 {[%clk 0:03:00.5]} 6. Nxc6 {[%clk 0:02:57.1]} 6... bxc6 {[%clk
0:03:01.4]} 7. e5 {[%clk 0:02:57.6]} 7... Nd5 {[%clk 0:03:01.9]} 8. Ne4 {[%clk
0:02:58.2]} 8... Bb7 {[%clk 0:03:02]} 9. a3 {[%clk 0:02:32.5]} 9... Qc7 {[%clk
0:02:57.6]} 10. f4 {[%clk 0:02:31]} 10... c5 {[%clk 0:02:56.2]} 11. c4 {[%clk
0:02:12]} 11... Nxf4 {[%clk 0:02:27.6]} 12. Nd6+ {[%clk 0:02:11.6]} 12... Bxd6
{[%clk 0:02:28.1]} 13. exd6 {[%clk 0:02:12]} 13... Qc6 {[%clk 0:02:28.7]} 14.
Kf2 {[%clk 0:01:32.4]} 14... Ng6 {[%clk 0:02:00.6]} 15. h4 {[%clk 0:01:27.2]}
15... h5 {[%clk 0:01:58.6]} 16. Rh3 {[%clk 0:01:25.4]} 16... Ne5 {[%clk
0:01:57.9]} 17. Kg1 {[%clk 0:01:22]} 17... Ng4 {[%clk 0:01:54.4]} 18. Bf4 {[%clk
0:01:02.5]} 18... e5 {[%clk 0:01:50.1]} 19. Bg5 {[%clk 0:00:58.2]} 19... f6
{[%clk 0:01:49.6]} 20. Bc1 {[%clk 0:00:52]} 20... O-O {[%clk 0:01:48.2]} 21. Qc2
{[%clk 0:00:46.2]} 21... Qxd6 {[%clk 0:01:40.9]} 22. Bd2 {[%clk 0:00:42.6]}
22... Qd4+ {[%clk 0:01:38.6]} 23. Kh1 {[%clk 0:00:41.5]} 23... Nf2+ {[%clk
0:01:38.8]} 24. Kh2 {[%clk 0:00:41.9]} 24... Nxh3 {[%clk 0:01:39]} 25. gxh3
{[%clk 0:00:41.7]} 25... Qf2+ {[%clk 0:01:38.4]} 0-1

[Event "Late-Titled-Tuesday-Blitz-September-12-2023"]
[Site "Chess.com"]
[Date "2023.09.12"]
[Round "3"]
[White "jaskol95"]
[Black "ZuraTqebuchava"]
[Result "1-0"]
[WhiteElo "2520"]
[BlackElo "2252"]
[TimeControl "180+1"]
[EndTime "14:24:36 PDT"]
[Termination "jaskol95 won by checkmate"]

1. e4 {[%clk 0:03:00.9]} 1... e5 {[%clk 0:03:00.4]} 2. Nf3 {[%clk 0:03:00.6]}
2... Nc6 {[%clk 0:03:01]} 3. Bc4 {[%clk 0:03:01.2]} 3... Be7 {[%clk 0:03:01.5]}
4. c3 {[%clk 0:02:57.8]} 4... d6 {[%clk 0:03:00.4]} 5. d4 {[%clk 0:02:57.9]}
5... exd4 {[%clk 0:02:58.9]} 6. cxd4 {[%clk 0:02:57.8]} 6... Nf6 {[%clk
0:02:56.7]} 7. Nc3 {[%clk 0:02:57.3]} 7... O-O {[%clk 0:02:55.5]} 8. h3 {[%clk
0:02:55.4]} 8... Nxe4 {[%clk 0:02:48.9]} 9. Nxe4 {[%clk 0:02:49.7]} 9... d5
{[%clk 0:02:49]} 10. Bd3 {[%clk 0:02:50.4]} 10... dxe4 {[%clk 0:02:48.9]} 11.
Bxe4 {[%clk 0:02:51.3]} 11... Nb4 {[%clk 0:02:34.2]} 12. O-O {[%clk 0:02:47.7]}
12... Nd5 {[%clk 0:02:30]} 13. Re1 {[%clk 0:02:45.7]} 13... Be6 {[%clk
0:02:22.7]} 14. Bd2 {[%clk 0:02:43.4]} 14... h6 {[%clk 0:02:20.6]} 15. Ne5
{[%clk 0:02:38.6]} 15... c6 {[%clk 0:02:14.7]} 16. Qh5 {[%clk 0:02:36.4]} 16...
Nf6 {[%clk 0:02:06.9]} 17. Qf3 {[%clk 0:02:30.7]} 17... Qxd4 {[%clk 0:01:58.8]}
18. Bc3 {[%clk 0:02:28.5]} 18... Qc5 {[%clk 0:01:32.2]} 19. Bc2 {[%clk
0:02:20.4]} 19... Rfd8 {[%clk 0:01:08.6]} 20. Ng6 {[%clk 0:02:08.7]} 20... fxg6
{[%clk 0:00:37.6]} 21. Rxe6 {[%clk 0:02:08.3]} 21... Nd5 {[%clk 0:00:27.4]} 22.
Bb3 {[%clk 0:01:57.8]} 22... Rf8 {[%clk 0:00:23.9]} 23. Qg3 {[%clk 0:01:51.8]}
23... Kh7 {[%clk 0:00:22.4]} 24. Qxg6+ {[%clk 0:01:50.8]} 24... Kh8 {[%clk
0:00:22.1]} 25. Qxg7# {[%clk 0:01:51.7]} 1-0

[Event "Late-Titled-Tuesday-Blitz-September-12-2023"]
[Site "Chess.com"]
[Date "2023.09.12"]
[Round "3"]
[White "cukin84"]
[Black "FeketeBarika"]
[Result "1-0"]
[WhiteElo "2226"]
[BlackElo "2371"]
[TimeControl "180+1"]
[EndTime "14:24:50 PDT"]
[Termination "cukin84 won by resignation"]

1. e4 {[%clk 0:03:00.9]} 1... e6 {[%clk 0:02:56.1]} 2. d4 {[%clk 0:03:00.3]}
2... d5 {[%clk 0:02:56.5]} 3. Nc3 {[%clk 0:03:00.6]} 3... Nf6 {[%clk 0:02:55.8]}
4. e5 {[%clk 0:03:00.6]} 4... Nfd7 {[%clk 0:02:54.8]} 5. f4 {[%clk 0:03:00.8]}
5... c5 {[%clk 0:02:53.9]} 6. Nf3 {[%clk 0:03:00.9]} 6... Nc6 {[%clk 0:02:54.6]}
7. Be3 {[%clk 0:03:01]} 7... Be7 {[%clk 0:02:53.5]} 8. Qd2 {[%clk 0:03:00.8]}
8... O-O {[%clk 0:02:51.6]} 9. Bb5 {[%clk 0:03:00.1]} 9... Qa5 {[%clk
0:02:48.3]} 10. Bxc6 {[%clk 0:02:56.2]} 10... bxc6 {[%clk 0:02:48.4]} 11. O-O
{[%clk 0:02:55.6]} 11... cxd4 {[%clk 0:02:45.1]} 12. Nxd4 {[%clk 0:02:54.4]}
12... c5 {[%clk 0:02:41.3]} 13. Nc6 {[%clk 0:02:54.1]} 13... Qc7 {[%clk
0:02:37.9]} 14. Nxe7+ {[%clk 0:02:53.9]} 14... Kh8 {[%clk 0:02:38.5]} 15. Nxc8
{[%clk 0:02:47.7]} 15... d4 {[%clk 0:02:35.8]} 16. Nb5 {[%clk 0:02:41.1]} 16...
Qxc8 {[%clk 0:02:21.8]} 17. Bf2 {[%clk 0:02:40.3]} 17... Rb8 {[%clk 0:02:19.4]}
18. Nd6 {[%clk 0:02:39.3]} 18... Qc6 {[%clk 0:02:20.1]} 19. b3 {[%clk
0:02:37.7]} 19... f6 {[%clk 0:02:18.7]} 20. Nc4 {[%clk 0:02:33.1]} 20... fxe5
{[%clk 0:02:13.4]} 21. Nxe5 {[%clk 0:02:32.7]} 21... Nxe5 {[%clk 0:02:12.6]} 22.
fxe5 {[%clk 0:02:33.6]} 22... Qe4 {[%clk 0:02:12]} 23. Bg3 {[%clk 0:02:31.7]}
23... h6 {[%clk 0:02:04.9]} 24. Rae1 {[%clk 0:02:29.4]} 24... Qg6 {[%clk
0:02:03.5]} 25. Rxf8+ {[%clk 0:02:25]} 25... Rxf8 {[%clk 0:02:02.7]} 26. Rf1
{[%clk 0:02:25.3]} 26... Rd8 {[%clk 0:02:02.9]} 27. Qd3 {[%clk 0:02:24.7]} 27...
Qg4 {[%clk 0:01:59.3]} 28. h3 {[%clk 0:02:23.5]} 28... Qg5 {[%clk 0:01:57.5]}
29. Bf4 {[%clk 0:02:17.9]} 29... Qh5 {[%clk 0:01:56.2]} 30. Qf3 {[%clk
0:02:16.8]} 30... Qf5 {[%clk 0:01:51.4]} 31. Bg3 {[%clk 0:02:15.2]} 31... Qxc2
{[%clk 0:01:50.4]} 32. Rf2 {[%clk 0:02:15.6]} 32... Qb1+ {[%clk 0:01:49.6]} 33.
Kh2 {[%clk 0:02:15.8]} 33... d3 {[%clk 0:01:48.7]} 34. Rd2 {[%clk 0:02:07.1]}
34... a5 {[%clk 0:01:45.1]} 35. Bh4 {[%clk 0:02:05.9]} 35... Rd4 {[%clk
0:01:39.7]} 36. Qf8+ {[%clk 0:02:00.8]} 36... Kh7 {[%clk 0:01:37.2]} 37. Qe7
{[%clk 0:01:54.8]} 37... Rxh4 {[%clk 0:00:38.4]} 38. Qxh4 {[%clk 0:01:53.9]}
38... a4 {[%clk 0:00:36.2]} 39. Qe4+ {[%clk 0:01:52.8]} 1-0